bitfinex/quotes_SOLUSD_20251202
["timestamp","ask_amount","ask_price","bid_price","bid_amount"]
[1764714078695,4.86582189,139.51,139.48,0.71]
[1764714079592,12.03393945,139.51,139.48,0.71]
[1764714079967,12.74393945,139.51,139.48,0.71]
[1764714080166,12.03393945,139.51,139.48,0.71]
[1764714080366,4.86582189,139.51,139.48,0.71]
[1764714081395,12.03390117,139.51,139.48,0.71]
[1764714081599,12.33390117,139.51,139.48,0.71]
[1764714083288,13.04390117,139.51,139.48,0.71]
[1764714085702,13.04390117,139.51,139.46,0.2]
[1764714085703,4.86582189,139.49,139.46,0.2]
[1764714085896,4.86582189,139.48,139.46,0.91]
[1764714087479,12.74538673,139.48,139.46,0.2]
[1764714087798,5.57582189,139.47,139.46,0.2]
[1764714088504,4.86582189,139.47,139.46,0.2]
[1764714089674,12.7458226,139.47,139.46,0.2]
[1764714102191,20.6658226,139.47,139.46,0.2]
[1764714103082,29.47576752,139.47,139.46,0.2]
[1764714108611,28.76576752,139.47,139.46,0.2]
[1764714108812,29.44576752,139.47,139.46,0.2]
[1764714109207,23.89994563,139.47,139.46,0.2]
[1764714109535,29.44576752,139.47,139.46,0.2]
[1764714110132,12.0358226,139.47,139.46,0.2]
[1764714110336,19.9558226,139.47,139.46,0.2]
[1764714111640,7.92,139.47,139.46,0.2]
[1764714111821,19.9558226,139.47,139.46,0.2]
[1764714112232,13.46582189,139.47,139.46,0.2]
[1764714112421,12.78582189,139.47,139.46,0.2]
[1764714112825,19.9558226,139.47,139.46,0.2]
[1764714114239,0.3,139.48,139.46,0.92]
[1764714114442,35.83965651,139.52,139.46,0.92]
[1764714114443,4.86582189,139.52,139.46,12.95605441]
[1764714114742,12.78582189,139.52,139.47,0.72]
[1764714114915,4.86582189,139.51,139.47,0.72]
[1764714115917,12.03411317,139.51,139.47,7.88986735]
[1764714116422,10.27963713,139.51,139.48,0.72]
[1764714117146,10.2798661,139.5,139.48,0.72]
[1764714117337,3.11134585,139.5,139.48,0.72]
[1764714118731,10.27990092,139.5,139.48,0.72]
[1764714118927,0.68,139.49,139.46,0.92]
[1764714119142,3.11134585,139.49,139.47,0.72]
[1764714119319,7.84855507,139.5,139.47,0.72]
[1764714119320,10.95990092,139.5,139.47,0.72]
[1764714119642,10.27953362,139.51,139.47,0.72]
[1764714119828,3.11134585,139.5,139.47,0.72]
[1764714120237,3.79134585,139.5,139.47,0.72]
[1764714120742,10.28031853,139.49,139.46,0.2]
[1764714120941,10.96031853,139.49,139.46,0.92]
[1764714121330,18.88031853,139.49,139.46,0.92]
[1764714121636,18.88031853,139.49,139.47,0.72]
[1764714122023,18.88031853,139.49,139.46,0.92]
[1764714122423,18.88031853,139.49,139.47,0.72]
[1764714122631,18.88031853,139.49,139.46,0.92]
[1764714123252,0.3,139.48,139.46,0.92]
[1764714125446,0.3,139.48,139.46,0.2]
[1764714125447,3.41134585,139.48,139.46,0.2]
[1764714125754,3.11134585,139.47,139.46,0.2]
[1764714126052,3.79134585,139.47,139.46,0.2]
[1764714127351,10.96134656,139.47,139.46,0.2]
[1764714127849,36.08015548,139.47,139.46,0.2]
[1764714130448,28.91015477,139.47,139.46,0.2]
[1764714130657,36.08015548,139.47,139.46,0.2]
[1764714135161,44.00015548,139.47,139.46,0.2]
[1764714137154,11.92129077,139.43,139.42,0.2]
[1764714138049,11.92129077,139.43,139.42,0.91]
[1764714138236,19.09334843,139.43,139.42,0.91]
[1764714138733,19.09334843,139.43,139.42,0.2]
[1764714140435,11.92129077,139.43,139.42,0.2]
[1764714140638,19.09334843,139.43,139.42,0.2]
[1764714142265,19.79334843,139.43,139.42,0.2]
[1764714144374,11.03134585,139.44,139.42,0.91]
[1764714144607,3.11134585,139.43,139.42,0.91]
[1764714144777,3.11134585,139.51,139.43,0.71]
[1764714145074,3.11134585,139.51,139.47,3.11134585]
[1764714145075,7.92,139.51,139.47,3.11134585]
[1764714145446,7.92,139.51,139.48,0.71]
[1764714145755,7.92,139.51,139.48,3.82134585]
[1764714145953,7.92,139.51,139.48,0.71]
[1764714146144,7.92,139.51,139.49,0.71]
[1764714146951,7.92,139.51,139.49,7.87897111]
[1764714147337,7.92,139.51,139.5,0.71]
[1764714147758,7.16745506,139.52,139.5,0.71]
[1764714148069,7.92,139.53,139.5,0.71]
[1764714148266,18.89828396,139.53,139.5,0.71]
[1764714148470,3.11134585,139.52,139.5,0.71]
[1764714148678,18.89857714,139.53,139.5,0.71]
[1764714149369,7.92,139.53,139.5,0.71]
[1764714150772,15.08692376,139.53,139.5,0.71]
[1764714152069,15.08692376,139.53,139.5,7.87828634]
[1764714152070,7.92,139.53,139.5,7.87828634]
[1764714152273,7.92,139.53,139.51,0.71]
[1764714153372,17.92382096,139.59,139.51,7.87775385]
[1764714153571,11.73134585,139.57,139.51,10.9890997]
[1764714153778,7.92,139.56,139.52,3.82134585]
[1764714154073,3.81134585,139.6,139.54,3.11134585]
[1764714154288,3.81134585,139.6,139.51,25.08761622]
[1764714154289,3.11134585,139.58,139.51,25.08761622]
[1764714154501,3.11134585,139.55,139.52,0.71]
[1764714154792,18.19733598,139.55,139.52,0.71]
[1764714154993,18.89733598,139.55,139.52,0.71]
[1764714156384,7.92,139.55,139.52,3.82134585]
[1764714156570,7.92,139.55,139.52,10.98873911]
[1764714156883,7.92,139.55,139.53,0.71]
[1764714160086,7.92,139.55,139.53,7.87688655]
[1764714160586,7.92,139.55,139.54,0.71]
[1764714160879,18.89641962,139.57,139.54,0.71]
[1764714161057,15.08507377,139.57,139.54,0.71]
[1764714161258,0.3,139.56,139.54,7.87609031]
[1764714161671,0.3,139.56,139.55,0.71]
[1764714163687,0.3,139.56,139.55,0.72]
[1764714166988,0.3,139.56,139.55,7.88589036]
[1764714170289,0.3,139.56,139.55,10.99723621]
[1764714170492,7.92,139.59,139.55,28.91196211]
[1764714170493,8.22,139.59,139.55,28.91196211]
[1764714170673,24.25187533,139.61,139.56,3.83134585]
[1764714170674,0.3,139.58,139.56,3.83134585]
[1764714170867,0.3,139.58,139.57,0.72]
[1764714172571,0.3,139.58,139.55,0.72]
[1764714172572,8.14439335,139.58,139.55,0.72]
[1764714172772,0.3,139.57,139.53,7.88651077]
[1764714172972,0.98,139.57,139.54,0.72]
[1764714174568,0.98,139.57,139.54,7.88627566]
[1764714174773,0.3,139.57,139.55,0.72]
[1764714176173,0.3,139.57,139.55,7.88547509]
[1764714176401,0.3,139.57,139.56,0.72]
[1764714176696,15.38332399,139.6,139.56,0.72]
[1764714176885,16.06332399,139.6,139.56,0.72]
[1764714177271,8.9,139.6,139.56,0.72]
[1764714178399,0.68,139.59,139.56,7.88486746]
[1764714178811,8.22,139.6,139.57,0.72]
[1764714179311,0.68,139.59,139.56,0.72]
[1764714179477,0.68,139.59,139.54,4.85518761]
[1764714179680,0.68,139.59,139.56,0.72]
[1764714180527,0.1,139.61,139.57,4.85518761]
[1764714180801,0.1,139.61,139.58,4.85518761]
[1764714181202,0.1,139.61,139.59,0.72]
[1764714182302,12.79821961,139.61,139.57,0.72]
[1764714182507,12.79821961,139.61,139.57,7.88466742]
[1764714183014,12.79821961,139.61,139.58,0.72]
[1764714185583,0.3,139.6,139.58,0.72]
[1764714187598,0.3,139.6,139.57,7.16451831]
[1764714187806,0.3,139.6,139.58,0.72]
[1764714189726,0.3,139.6,139.58,7.88434506]
[1764714192811,1.0,139.6,139.58,7.16434506]
[1764714192991,1.0,139.6,139.57,7.88463552]
[1764714193192,1.0,139.6,139.58,0.72]
[1764714195909,0.1,139.61,139.59,4.85518761]
[1764714196089,0.1,139.61,139.6,4.85518761]
[1764714196606,0.1,139.61,139.6,5.57518761]
[1764714196913,0.1,139.61,139.6,12.73851139]
[1764714198815,0.1,139.61,139.6,7.88332378]
[1764714199618,0.8,139.61,139.57,0.72]
[1764714199794,0.8,139.61,139.58,0.72]
[1764714199995,5.65518761,139.61,139.57,7.1648635]
[1764714200220,0.7,139.6,139.57,7.8848635]
[1764714201194,5.65518761,139.61,139.58,0.72]
[1764714202003,0.7,139.6,139.58,0.72]
[1764714202506,5.65518761,139.61,139.58,0.72]
[1764714202708,0.1,139.61,139.58,0.72]
[1764714202910,0.7,139.6,139.58,0.72]
[1764714203113,0.7,139.6,139.56,25.07826309]
[1764714203114,0.7,139.6,139.57,0.72]
[1764714203514,0.1,139.61,139.58,7.16435019]
[1764714203716,0.1,139.61,139.56,7.16507779]
[1764714203717,0.8,139.61,139.56,7.16507779]
[1764714203903,0.8,139.61,139.57,0.72]
[1764714204105,12.81806847,139.61,139.56,25.79852003]
[1764714204412,0.7,139.6,139.56,25.79852003]
[1764714204618,5.55518761,139.6,139.56,7.88507779]
[1764714204815,4.85518761,139.59,139.55,7.88586918]
[1764714204997,0.7,139.59,139.55,7.88586918]
[1764714205193,0.7,139.58,139.55,7.88586918]
[1764714207730,0.7,139.58,139.55,7.16586918]
[1764714207906,5.55518761,139.58,139.55,7.16586918]
[1764714208421,5.55518761,139.58,139.55,7.88586918]
[1764714210725,5.55518761,139.58,139.55,7.88586918]
[1764714210918,12.01958136,139.58,139.55,7.16586918]
[1764714211114,5.55518761,139.57,139.54,7.88627407]
[1764714211310,4.85518761,139.56,139.52,34.94671031]
[1764714211512,0.3,139.55,139.52,34.94671031]
[1764714211812,1.0,139.55,139.52,34.22671031]
[1764714212017,1.0,139.55,139.53,7.88683828]
[1764714213326,0.3,139.55,139.54,0.72]
[1764714213533,5.55518761,139.59,139.54,0.72]
[1764714213709,0.7,139.58,139.54,0.72]
[1764714214501,4.85518761,139.56,139.53,7.16683828]
[1764714214898,5.51518761,139.55,139.53,7.16683828]
[1764714215102,4.85518761,139.55,139.53,7.16683828]
[1764714215321,5.51518761,139.56,139.53,7.85683828]
[1764714216118,0.66,139.55,139.53,7.85683828]
[1764714216318,0.66,139.55,139.53,7.16683828]
[1764714218240,4.85518761,139.56,139.51,25.08712122]
[1764714218444,5.51518761,139.56,139.53,0.69]
[1764714219243,13.43518761,139.56,139.53,0.69]
[1764714219544,8.58,139.56,139.53,7.85651526]
[1764714220744,13.43518761,139.56,139.53,7.85651526]
[1764714221245,0.66,139.55,139.53,7.85651526]
[1764714221741,12.77518761,139.56,139.53,7.85651526]
[1764714222043,8.6,139.56,139.53,7.85651526]
[1764714223018,0.68,139.55,139.52,7.16727362]
[1764714223219,5.53518761,139.55,139.52,0.68]
[1764714223521,5.53518761,139.55,139.51,0.68]
[1764714223721,0.68,139.54,139.51,0.68]
[1764714223917,4.85518761,139.55,139.51,0.68]
[1764714224140,5.15518761,139.55,139.51,0.68]
[1764714224552,0.68,139.54,139.51,0.68]
[1764714225050,0.98,139.55,139.52,7.16743119]
[1764714225223,0.3,139.55,139.52,7.16743119]
[1764714225543,0.3,139.55,139.53,0.68]
[1764714227172,0.3,139.55,139.54,7.16640389]
[1764714227547,0.3,139.55,139.54,7.84640389]
[1764714228050,0.3,139.55,139.53,7.84673879]
[1764714229652,0.98,139.55,139.52,0.68]
[1764714231453,0.98,139.55,139.52,7.84712299]
[1764714235361,0.98,139.55,139.52,0.68]
[1764714238265,0.98,139.55,139.52,7.84707973]
[1764714240769,0.98,139.55,139.5,0.68]
[1764714240770,0.68,139.54,139.5,0.68]
[1764714240947,17.02994492,139.53,139.47,0.68]
[1764714241341,0.3,139.53,139.47,0.68]
[1764714241545,8.6,139.52,139.47,0.68]
[1764714241849,8.22,139.53,139.47,0.68]
[1764714242876,0.68,139.54,139.48,7.16948666]
[1764714243078,8.6,139.54,139.48,7.16948666]
[1764714243294,8.6,139.54,139.49,0.68]
[1764714243960,7.92,139.54,139.49,0.68]
[1764714244690,25.11880892,139.58,139.49,16.988864]
[1764714244976,25.11880892,139.58,139.5,7.16845878]
[1764714244977,8.80994492,139.56,139.5,7.16845878]
[1764714245181,0.68,139.55,139.51,0.68]
[1764714247366,0.68,139.55,139.52,7.16743119]
[1764714247585,7.84593547,139.55,139.52,7.16743119]
[1764714248276,0.68,139.54,139.52,7.16743119]
[1764714249070,0.68,139.54,139.51,7.84772887]
[1764714251091,0.98,139.54,139.51,7.84772887]
[1764714252077,0.72,139.53,139.5,7.16827159]
[1764714252279,0.72,139.53,139.5,7.81827159]
[1764714253497,0.3,139.52,139.47,16.958864]
[1764714253695,0.72,139.51,139.48,0.65]
[1764714254805,0.72,139.51,139.48,7.81943236]
[1764714255174,0.72,139.51,139.47,7.1699506]
[1764714255371,0.3,139.52,139.48,0.65]
[1764714255592,0.3,139.52,139.48,7.824]
[1764714255794,0.3,139.52,139.48,0.65]
[1764714256072,1.02,139.52,139.49,0.65]
[1764714257014,1.02,139.52,139.49,7.81849796]
[1764714257015,0.3,139.52,139.49,7.81849796]
[1764714257185,1.02,139.52,139.49,7.81849796]
[1764714260006,0.72,139.52,139.49,7.81849796]
[1764714260996,7.88759985,139.52,139.46,0.65]
[1764714261199,7.88759985,139.52,139.46,7.82051484]
[1764714261485,0.72,139.51,139.47,0.65]
[1764714262394,7.88800827,139.51,139.47,7.8195808]
[1764714262803,0.72,139.5,139.47,7.8195808]
[1764714265316,0.72,139.5,139.47,0.65]
[1764714265812,1.02,139.5,139.47,0.65]
[1764714266798,1.02,139.5,139.47,7.81996512]
[1764714266996,0.3,139.5,139.47,25.74496691]
[1764714267210,0.3,139.5,139.48,0.65]
[1764714268688,0.3,139.5,139.49,7.16897268]
[1764714269110,7.92,139.53,139.49,25.09140439]
[1764714269294,7.92,139.53,139.5,0.65]
[1764714270089,7.92,139.53,139.51,7.16794495]
[1764714270289,8.64,139.53,139.51,7.16794495]
[1764714270814,8.64,139.53,139.51,7.81794495]
[1764714272594,7.16590261,139.55,139.49,17.92243171]
[1764714272595,0.72,139.55,139.52,0.65]
[1764714273810,0.72,139.55,139.52,7.81715426]
[1764714274116,0.72,139.55,139.52,7.16715426]
[1764714274517,0.72,139.55,139.52,7.81715426]
[1764714277720,1.02,139.55,139.52,7.81715426]
[1764714279316,0.3,139.55,139.52,7.16715426]
[1764714279505,0.3,139.55,139.53,0.65]
[1764714279907,1.02,139.55,139.53,0.65]
[1764714280213,1.02,139.55,139.52,7.16715426]
[1764714280412,1.02,139.55,139.52,7.81715426]
[1764714280813,0.3,139.55,139.53,0.65]
[1764714282222,0.96,139.55,139.53,0.65]
[1764714283126,0.96,139.55,139.52,7.87715426]
[1764714284824,0.96,139.55,139.52,7.16715426]
[1764714285025,0.96,139.55,139.53,0.71]
[1764714285411,0.96,139.55,139.52,7.87715426]
[1764714285608,0.96,139.55,139.52,7.16715426]
[1764714285911,0.96,139.55,139.53,0.71]
[1764714286108,0.3,139.55,139.53,0.71]
[1764714286418,0.3,139.55,139.53,7.87674499]
[1764714288624,0.3,139.55,139.54,0.71]
[1764714289423,0.3,139.55,139.51,25.08712379]
[1764714289627,0.3,139.55,139.53,0.71]
[1764714291360,0.3,139.55,139.51,17.91917884]
[1764714291551,0.66,139.54,139.51,0.71]
[1764714291754,0.66,139.54,139.52,0.71]
[1764714292555,0.3,139.55,139.52,0.71]
[1764714293256,0.3,139.55,139.53,7.1669175]
[1764714293628,0.3,139.55,139.53,7.8769175]
[1764714294228,0.66,139.54,139.5,7.16845878]
[1764714294529,8.58,139.54,139.5,7.16845878]
[1764714294942,0.66,139.53,139.5,7.16845878]
[1764714296554,7.82705046,139.53,139.5,7.16845878]
[1764714296925,0.66,139.52,139.5,7.16845878]
[1764714299655,0.66,139.52,139.49,7.16897268]
[1764714299950,0.66,139.52,139.49,7.87897268]
[1764714301453,0.96,139.52,139.49,7.87897268]
[1764714304650,0.3,139.52,139.49,7.87897268]
[1764714304860,0.66,139.51,139.49,7.87897268]
[1764714305754,0.3,139.52,139.49,7.87897268]
[1764714305946,0.96,139.52,139.49,7.87897268]
[1764714306355,0.66,139.51,139.49,7.87897268]
[1764714306656,0.66,139.51,139.49,7.16897268]
[1764714309462,0.66,139.51,139.49,0.71]
[1764714309663,0.3,139.52,139.5,0.71]
[1764714310234,0.66,139.53,139.5,0.71]
[1764714311476,0.66,139.54,139.51,7.16794495]
[1764714311958,0.97,139.6,139.52,16.988864]
[1764714312144,0.97,139.6,139.54,16.308864]
[1764714312145,0.67,139.6,139.54,16.308864]
[1764714312338,0.1,139.61,139.54,24.228864]
[1764714312538,0.1,139.61,139.55,0.68]
[1764714312939,0.1,139.61,139.59,16.308864]
[1764714313449,0.1,139.61,139.59,24.15261603]
[1764714313640,0.1,139.61,139.6,0.68]
[1764714316048,0.1,139.61,139.6,7.84332378]
[1764714317071,9.57994492,139.61,139.45,15.82265253]
[1764714317241,1.1916,139.44,139.43,3.74232858]
[1764714317443,1.1916,139.44,139.43,15.15205766]
[1764714317851,1.1916,139.44,139.43,15.83205766]
[1764714318555,0.57,139.52,139.46,16.308864]
[1764714318760,0.57,139.52,139.47,7.98]
[1764714319378,0.57,139.52,139.47,8.66]
[1764714319961,0.57,139.52,139.48,7.16948666]
[1764714320156,7.73755379,139.52,139.47,8.66]
[1764714320577,0.57,139.51,139.47,8.66]
[1764714321949,0.57,139.51,139.47,15.82987057]
[1764714324479,7.16700442,139.53,139.48,7.84921292]
[1764714324681,7.73700442,139.53,139.49,7.98]
[1764714324900,0.57,139.52,139.49,7.98]
[1764714327393,7.73758086,139.52,139.49,7.98]
[1764714328004,7.73758086,139.52,139.48,7.84945829]
[1764714328191,7.73758086,139.52,139.49,7.98]
[1764714331405,7.73758086,139.52,139.49,0.68]
[1764714331606,7.73758086,139.52,139.5,7.96]
[1764714331893,7.73758086,139.52,139.49,8.64]
[1764714332091,7.73758086,139.52,139.49,0.68]
[1764714332496,7.73758086,139.52,139.5,7.96]
[1764714332809,7.73758086,139.52,139.49,0.68]
[1764714333104,7.73758086,139.52,139.5,7.96]
[1764714334505,7.16758086,139.52,139.47,0.68]
[1764714334688,7.16758086,139.52,139.48,7.96]
[1764714335002,7.73758086,139.52,139.48,7.96]
[1764714335190,7.73758086,139.52,139.49,0.68]
[1764714341006,7.1669175,139.53,139.49,0.68]
[1764714341210,0.57,139.53,139.49,0.68]
[1764714341577,0.57,139.53,139.49,8.64]
[1764714341784,0.57,139.53,139.5,7.96]
[1764714342379,0.57,139.53,139.49,0.68]
[1764714342583,0.57,139.53,139.5,7.96]
[1764714342887,0.3,139.52,139.49,8.64]
[1764714343289,7.46748876,139.52,139.49,0.68]
[1764714344211,7.46748876,139.52,139.49,8.64]
[1764714344511,7.46748876,139.52,139.49,0.68]
[1764714344710,7.46748876,139.52,139.49,8.64]
[1764714344886,7.46748876,139.52,139.49,0.68]
[1764714345087,7.46748876,139.52,139.49,8.64]
[1764714345582,7.46748876,139.52,139.49,0.68]
[1764714345783,7.46748876,139.52,139.49,8.64]
[1764714345784,8.03748876,139.52,139.49,8.64]
[1764714347210,7.46748876,139.52,139.49,8.64]
[1764714348321,0.3,139.52,139.5,0.71]
[1764714348711,0.3,139.52,139.49,8.67]
[1764714348913,0.3,139.52,139.49,15.83892708]
[1764714349422,7.46749064,139.52,139.49,15.83892708]
[1764714350112,8.03749064,139.52,139.49,15.83892708]
[1764714350727,8.03749064,139.52,139.49,8.67]
[1764714351119,7.46749064,139.52,139.49,8.67]
[1764714352021,7.46749064,139.52,139.49,0.71]
[1764714352230,7.46749064,139.52,139.48,7.16935599]
[1764714352231,0.57,139.51,139.48,7.16935599]
[1764714352528,8.03749064,139.52,139.49,7.96]
[1764714353207,8.03749064,139.52,139.49,8.67]
[1764714356225,7.46749064,139.52,139.5,0.71]
[1764714356426,7.46749064,139.52,139.49,7.96]
[1764714356629,8.03749064,139.52,139.49,8.67]
[1764714358719,0.3,139.52,139.5,0.71]
[1764714358921,7.46749377,139.52,139.5,0.71]
[1764714359534,8.03749377,139.52,139.49,15.83897059]
[1764714363529,0.3,139.52,139.5,0.71]
[1764714365834,0.3,139.52,139.5,7.87835486]
[1764714366008,0.3,139.52,139.51,0.71]
[1764714372236,7.46743119,139.52,139.48,7.16913058]
[1764714372537,8.03743119,139.52,139.49,8.66]
[1764714373527,7.46743119,139.52,139.5,0.72]
[1764714374824,0.3,139.52,139.5,0.72]
[1764714375546,7.46745221,139.52,139.5,0.72]
[1764714375949,0.3,139.52,139.5,0.72]
[1764714376622,7.46754918,139.52,139.5,0.72]
[1764714380247,0.57,139.51,139.46,0.72]
[1764714384539,7.46892295,139.5,139.46,0.72]
[1764714386042,8.03892295,139.5,139.46,0.72]
[1764714386655,8.03892295,139.5,139.46,7.89043517]
[1764714388356,8.03892295,139.5,139.47,0.72]
[1764714389771,9.67994492,139.49,139.42,0.2]
[1764714389938,33.92880892,139.49,139.42,0.92]
[1764714390138,0.57,139.48,139.42,0.92]
[1764714390747,0.57,139.48,139.43,0.72]
[1764714391854,8.80994492,139.46,139.42,0.2]
[1764714392056,16.74994492,139.46,139.42,0.2]
[1764714392255,41.8510243,139.5,139.42,0.2]
[1764714392256,6.8787304,139.51,139.43,0.72]
[1764714392441,6.8787304,139.51,139.43,8.66]
[1764714392442,8.80994492,139.5,139.43,8.66]
[1764714392643,9.37994492,139.5,139.44,0.72]
[1764714393163,16.54858755,139.5,139.44,0.72]
[1764714393368,9.10994492,139.51,139.44,0.72]
[1764714394049,16.27806598,139.51,139.45,25.09860164]
[1764714394467,16.27806598,139.51,139.46,0.72]
[1764714394859,16.84806598,139.51,139.46,0.72]
[1764714395062,9.10994492,139.51,139.47,7.17000071]
[1764714395274,16.27792239,139.51,139.48,0.72]
[1764714397165,0.3,139.51,139.48,7.88948258]
[1764714400767,0.57,139.56,139.49,0.72]
[1764714400950,16.54587713,139.55,139.5,7.16845878]
[1764714401369,16.54587713,139.55,139.51,0.72]
[1764714403862,15.97587713,139.55,139.51,7.88783297]
[1764714404058,15.97587713,139.55,139.52,0.69]
[1764714405456,31.41424327,139.56,139.52,7.85742943]
[1764714405874,31.71424327,139.56,139.53,0.69]
[1764714407190,0.3,139.56,139.53,7.85677875]
[1764714407504,7.16463342,139.58,139.53,7.85677875]
[1764714407505,8.80994492,139.58,139.53,7.85677875]
[1764714407704,8.80994492,139.58,139.54,0.69]
[1764714407912,16.54441138,139.58,139.54,0.69]
[1764714408777,9.37994492,139.58,139.54,0.69]
[1764714409590,9.37994492,139.58,139.54,7.85621151]
[1764714409784,16.5444061,139.58,139.54,7.85621151]
[1764714409983,16.5444061,139.58,139.54,0.69]
[1764714411783,0.57,139.57,139.53,7.16670465]
[1764714412091,0.57,139.57,139.54,0.69]
[1764714413994,34.45528158,139.58,139.54,0.69]
[1764714414310,33.88528158,139.58,139.54,0.69]
[1764714414491,34.45528158,139.58,139.54,0.69]
[1764714416492,33.88528158,139.58,139.54,0.69]
[1764714416678,0.57,139.57,139.54,0.69]
[1764714416877,16.5444061,139.58,139.54,7.85632045]
[1764714417200,0.3,139.57,139.54,7.85632045]
[1764714417698,7.46489623,139.57,139.54,7.85632045]
[1764714417905,0.3,139.57,139.55,0.69]
[1764714420499,0.3,139.57,139.55,7.85587314]
[1764714423111,0.3,139.56,139.55,7.85587314]
[1764714429136,0.3,139.59,139.55,7.85587314]
[1764714429317,0.3,139.59,139.56,0.69]
[1764714429518,0.3,139.58,139.56,0.69]
[1764714429714,127.97219357,139.6,139.56,0.69]
[1764714429715,0.3,139.6,139.56,0.69]
[1764714429912,0.1,139.61,139.56,0.69]
[1764714430647,16.64279862,139.61,139.56,8.61]
[1764714430945,8.80994492,139.59,139.54,0.69]
[1764714431446,25.94522567,139.58,139.51,0.69]
[1764714431745,17.02994492,139.57,139.51,0.69]
[1764714431947,17.59994492,139.57,139.51,0.69]
[1764714432243,8.80994492,139.55,139.51,0.69]
[1764714432737,0.57,139.54,139.51,0.67]
[1764714432938,8.80994492,139.53,139.49,0.67]
[1764714433243,7.16743119,139.52,139.47,7.16962602]
[1764714433417,7.73743119,139.52,139.48,0.67]
[1764714435213,16.54696712,139.53,139.48,7.8393963]
[1764714435417,16.54696712,139.53,139.49,0.67]
[1764714436425,34.46426089,139.53,139.49,0.67]
[1764714437019,16.54696712,139.53,139.49,0.67]
[1764714438271,0.3,139.52,139.49,0.67]
[1764714438854,8.03775083,139.52,139.49,0.67]
[1764714439236,0.87,139.52,139.49,0.67]
[1764714439458,0.3,139.52,139.49,0.67]
[1764714439960,7.46743785,139.52,139.49,0.67]
[1764714442561,0.3,139.52,139.49,7.83881261]
[1764714442976,0.3,139.52,139.5,0.67]
[1764714444146,8.03759184,139.52,139.48,7.83941227]
[1764714444667,8.03759184,139.52,139.49,0.67]
[1764714444966,7.46759184,139.52,139.49,0.67]
[1764714446553,9.10994492,139.52,139.49,7.83890533]
[1764714446876,0.3,139.51,139.49,7.83890533]
[1764714447054,0.3,139.51,139.5,0.67]
[1764714450989,0.3,139.51,139.5,7.83845878]
[1764714452882,0.3,139.53,139.5,7.83845878]
[1764714453101,0.3,139.53,139.51,0.67]
[1764714455496,0.3,139.53,139.51,7.83783389]
[1764714455988,0.3,139.53,139.52,0.67]
[1764714456681,9.10994492,139.55,139.52,0.67]
[1764714456880,0.3,139.54,139.52,7.83720793]
[1764714458302,0.3,139.54,139.52,0.67]
[1764714461812,0.3,139.53,139.52,0.67]
[1764714475425,0.3,139.53,139.52,7.83743119]
[1764714480049,0.3,139.55,139.52,15.75743119]
[1764714480213,0.3,139.55,139.53,0.72]
[1764714480404,112.23438742,139.58,139.53,0.72]
[1764714480405,0.3,139.57,139.53,0.72]
[1764714481821,0.3,139.57,139.54,7.16640389]
[1764714482330,0.3,139.57,139.54,7.88640389]
[1764714483429,0.3,139.57,139.55,0.72]
[1764714483631,0.3,139.56,139.55,0.72]
[1764714485739,0.3,139.56,139.52,0.72]
[1764714485740,0.87,139.56,139.52,0.72]